bitfinex-derivatives/quotes_SOLF0:USTF0_20220108
["timestamp","ask_amount","ask_price","bid_price","bid_amount"]
[1641678682922,6.385,145.26,145.21,27.66479]
[1641678683925,27.66479,145.31,145.21,27.66479]
[1641678684225,2.92302743,145.39,145.3,2.0]
[1641678684426,14.41482647,145.4,145.38,2.0]
[1641678684626,8.83482647,145.4,145.35,2.0]
[1641678684825,38.52061801,145.43,145.39,55.32958]
[1641678685028,8.34061801,145.43,145.39,62.68258]
[1641678685230,65.5312,145.53,145.39,62.68258]
[1641678685231,2.0,145.5,145.39,62.68258]
[1641678685427,65.5312,145.53,145.39,62.68258]
[1641678685828,67.5312,145.53,145.39,64.68258]
[1641678686027,65.5312,145.53,145.4,1.718]
[1641678686228,67.5312,145.53,145.4,1.718]
[1641678686427,65.5312,145.53,145.4,3.718]
[1641678686931,4.0,145.5,145.48,27.66479]
[1641678687131,4.0,145.5,145.46,27.66479]
[1641678687132,2.0,145.49,145.46,27.66479]
[1641678687333,4.0,145.49,145.46,23.75663919]
[1641678687532,6.0,145.47,145.32,3.718]
[1641678687732,2.0,145.43,145.32,1.718]
[1641678687932,4.0,145.42,145.28,2.0]
[1641678688132,2.0,145.29,145.23,1.719]
[1641678688336,2.0,145.28,145.22,1.721]
[1641678688536,8.607,145.29,145.2,2.0]
[1641678688833,8.607,145.29,145.26,27.66479]
[1641678689037,2.0,145.27,145.26,27.66479]
[1641678689234,8.607,145.29,145.26,27.66479]
[1641678690536,2.0,145.35,145.26,27.66479]
[1641678690737,66.1707,145.37,145.26,27.66479]
[1641678690939,2.0,145.31,145.26,27.66479]
[1641678691637,4.0,145.35,145.26,27.66479]
[1641678691839,2.0,145.3,145.26,27.66479]
[1641678692038,4.0,145.33,145.26,27.66479]
[1641678692238,4.0,145.36,145.26,27.66479]
[1641678692437,4.0,145.3,145.26,27.66479]
[1641678692637,2.0,145.27,145.18,1.72]
[1641678692838,7.125,145.27,145.15,1.721]
[1641678693137,7.125,145.27,145.12,2.0]
[1641678693138,2.0,145.24,145.11,2.0]
[1641678693339,2.0,145.23,145.16,3.91285032]
[1641678693738,2.0,145.22,145.16,3.91285032]
[1641678693940,2.0,145.24,145.14,5.91285032]
[1641678694136,2.0,145.24,145.15,1.721]
[1641678694337,2.0,145.22,145.15,1.721]
[1641678694540,2.0,145.23,145.15,3.91285032]
[1641678694839,2.0,145.22,145.21,27.66479]
[1641678695038,2.0,145.23,145.19,27.66479]
[1641678695238,2.0,145.22,145.13,3.91285032]
[1641678695438,2.0,145.22,145.08,12.36]
[1641678695639,2.0,145.22,145.09,2.0]
[1641678695840,4.0,145.22,145.1,2.0]
[1641678696044,4.0,145.18,145.09,3.91304207]
[1641678696241,2.0,145.13,145.09,3.91304207]
[1641678696640,2.0,145.13,145.11,2.72392593]
[1641678696840,2.0,145.17,145.11,30.38871593]
[1641678697041,2.0,145.19,145.12,3.91304207]
[1641678697242,2.0,145.2,145.12,3.91304207]
[1641678697441,63.3163,145.24,145.12,3.91304207]
[1641678697642,2.0,145.14,145.12,3.91304207]
[1641678698044,68.82475882,145.24,145.12,3.91304207]
[1641678698242,2.0,145.19,145.12,10.33704207]
[1641678698744,63.3163,145.24,145.13,3.91304207]
[1641678698943,63.3163,145.24,145.18,27.66479]
[1641678699144,6.60877183,145.27,145.16,33.50579]
[1641678699346,2.0,145.22,145.16,33.50579]
[1641678699745,27.66479,145.28,145.17,3.91282668]
[1641678699945,62.6717,145.36,145.2,4.0]
[1641678700147,62.6717,145.36,145.22,4.0]
[1641678700346,62.6717,145.36,145.2,9.833]
[1641678700546,4.0,145.35,145.2,5.833]
[1641678700746,4.0,145.34,145.21,3.91282668]
[1641678700949,10.60590227,145.33,145.25,27.66479]
[1641678701351,4.0,145.29,145.25,27.66479]
[1641678701549,4.0,145.26,145.21,3.91282668]
[1641678701748,8.24,145.26,145.15,1.721]
[1641678702150,8.24,145.26,145.15,5.721]
[1641678702349,8.24,145.26,145.18,4.0]
[1641678702550,8.24,145.26,145.17,5.721]
[1641678702750,8.24,145.26,145.19,3.91215133]
[1641678702950,8.24,145.26,145.23,27.66479]
[1641678703450,31.66479,145.32,145.23,27.66479]
[1641678703853,4.0,145.31,145.23,27.66479]
[1641678704052,31.66479,145.32,145.23,27.66479]
[1641678704750,4.0,145.26,145.23,27.66479]
[1641678705151,4.0,145.25,145.21,27.66479]
[1641678705351,4.0,145.26,145.21,27.66479]
[1641678705555,16.36009223,145.27,145.11,12.33653404]
[1641678705752,4.0,145.26,145.12,4.0]
[1641678705952,4.0,145.2,145.12,3.91252974]
[1641678706152,4.0,145.17,145.12,3.91252974]
[1641678706353,5.661,145.17,145.12,3.91252974]
[1641678706954,5.661,145.17,145.13,27.66479]
[1641678707354,5.661,145.17,145.14,3.91252974]
[1641678708556,7.127,145.2,145.14,3.91252974]
[1641678708755,11.127,145.2,145.14,3.91252974]
[1641678708959,7.127,145.2,145.14,3.91252974]
[1641678709157,4.0,145.21,145.14,3.91252974]
[1641678709756,5.5085107,145.23,145.14,3.91252974]
[1641678710157,9.5085107,145.23,145.14,3.91252974]
[1641678710656,136.14297049,145.26,145.14,9.47152974]
[1641678710857,140.14297049,145.26,145.14,9.47152974]
[1641678711058,140.14297049,145.26,145.2,27.66479]
[1641678711257,73.74817049,145.26,145.2,27.66479]
[1641678711462,71.1391,145.26,145.2,27.66479]
[1641678711659,4.0,145.24,145.18,27.66479]
[1641678712058,4.0,145.24,145.19,3.91282431]
[1641678712258,4.0,145.23,145.19,3.91282431]
[1641678712459,4.0,145.24,145.19,3.91282431]
[1641678712659,4.0,145.24,145.18,27.66479]
[1641678713061,80.10458974,145.26,145.18,27.66479]
[1641678713262,9.50748974,145.26,145.18,27.66479]
[1641678713561,5.50748974,145.26,145.18,27.66479]
[1641678713761,5.50748974,145.26,145.19,3.91262205]
[1641678714161,4.0,145.26,145.19,3.91262205]
[1641678714962,4.0,145.26,145.21,27.66479]
[1641678715163,69.6463,145.29,145.21,27.66479]
[1641678715363,14.51330326,145.35,145.23,4.0]
[1641678715564,14.51330326,145.35,145.24,4.0]
[1641678715968,14.51330326,145.35,145.25,1.72]
[1641678716264,14.51330326,145.35,145.27,4.0]
[1641678716467,14.51330326,145.44,145.27,4.0]
[1641678716664,14.51330326,145.44,145.29,4.0]
[1641678716864,14.51330326,145.44,145.31,4.0]
[1641678717164,14.51330326,145.44,145.41,27.66479]
[1641678717364,4.0,145.42,145.41,6.239]
[1641678717564,4.0,145.42,145.32,3.91262205]
[1641678717764,4.0,145.38,145.32,3.91262205]
[1641678718165,4.0,145.4,145.28,14.51330326]
[1641678718365,4.0,145.38,145.28,14.51330326]
[1641678718566,64.3308,145.42,145.28,14.51330326]
[1641678718865,4.0,145.41,145.29,3.90946139]
[1641678719168,64.3308,145.42,145.35,27.66479]
[1641678719365,14.51330326,145.44,145.35,27.66479]
[1641678720066,4.0,145.43,145.35,27.66479]
[1641678720466,4.0,145.42,145.35,27.66479]
[1641678720666,8.468,145.42,145.27,14.51330326]
[1641678721069,36.13279,145.42,145.32,27.66479]
[1641678721368,4.0,145.39,145.32,27.66479]
[1641678721571,4.0,145.36,145.32,27.66479]
[1641678721771,4.0,145.35,145.27,2.73134497]
[1641678721969,5.50335419,145.37,145.27,2.73134497]
[1641678722170,65.1984,145.38,145.27,2.73134497]
[1641678722368,4.0,145.4,145.27,2.73134497]
[1641678722569,92.71329,145.42,145.28,3.90985356]
[1641678722769,107.22659326,145.42,145.28,3.90985356]
[1641678722969,14.51330326,145.42,145.33,4.0]
[1641678723169,14.51330326,145.42,145.4,27.66479]
[1641678723568,14.51330326,145.42,145.4,33.66779]
[1641678723768,22.12400741,145.48,145.4,33.66779]
[1641678723968,4.0,145.46,145.4,33.66779]
[1641678724569,4.0,145.45,145.4,33.66779]
[1641678724768,4.0,145.45,145.4,27.66479]
[1641678725170,4.0,145.44,145.4,27.66479]
[1641678725469,4.0,145.43,145.35,27.66479]
[1641678725869,8.323,145.43,145.35,27.66479]
[1641678726070,4.0,145.36,145.28,1.719]
[1641678726271,6.465,145.36,145.27,14.51330326]
[1641678726673,66.81551361,145.42,145.29,4.0]
[1641678726875,66.81551361,145.42,145.3,5.719]
[1641678727070,66.81551361,145.42,145.38,27.66479]
[1641678727271,2.11121361,145.42,145.38,27.66479]
[1641678727670,18.51330326,145.43,145.38,27.66479]
[1641678727872,4.0,145.44,145.38,27.66479]
[1641678728070,18.51330326,145.46,145.38,27.66479]
[1641678728271,4.0,145.45,145.38,27.66479]
[1641678728471,14.51330326,145.46,145.38,27.66479]
[1641678728671,14.51330326,145.46,145.38,34.94379]
[1641678729070,14.51330326,145.46,145.44,27.66479]
[1641678729871,4.0,145.45,145.38,27.66479]
[1641678730071,9.49950883,145.47,145.38,27.66479]
[1641678730271,2.11124883,145.48,145.38,35.46879]
[1641678730673,14.51330326,145.49,145.39,3.9070893]
[1641678730872,99.59642583,145.54,145.39,5.6250893]
[1641678731073,99.59642583,145.54,145.5,27.66479]
[1641678731074,10.59642583,145.54,145.5,27.66479]
[1641678731473,4.0,145.54,145.5,27.66479]
[1641678732072,14.51330326,145.56,145.5,27.66479]
[1641678732675,14.51330326,145.56,145.5,36.17079]
[1641678732972,38.63809845,145.6,145.5,40.17079]
[1641678733177,14.46114418,145.61,145.59,55.32958]
[1641678733372,14.46114418,145.61,145.59,61.30958]
[1641678733572,14.46114418,145.61,145.59,5.98]
[1641678733772,4.0,145.6,145.48,1.717]
[1641678733974,4.0,145.55,145.46,1.717]
[1641678734173,7.145,145.55,145.43,5.718]
[1641678734374,7.145,145.55,145.43,4.0]
[1641678734574,7.145,145.55,145.47,4.0]
[1641678734976,65.6661,145.59,145.48,5.718]
[1641678735174,27.66479,145.63,145.55,27.66479]
[1641678735373,4.0,145.65,145.55,27.66479]
[1641678735977,64.5881,145.66,145.55,27.66479]
[1641678736374,68.5881,145.66,145.55,27.66479]
[1641678736574,4.0,145.6,145.55,27.66479]
[1641678736774,4.0,145.58,145.55,27.66479]
[1641678736974,8.807,145.58,145.55,27.66479]
[1641678737175,4.0,145.56,145.53,27.66479]
[1641678737376,12.807,145.58,145.42,1.717]
[1641678737577,70.4198,145.57,145.42,1.717]
[1641678737774,4.0,145.52,145.43,3.90588436]
[1641678737976,11.484,145.52,145.43,3.90588436]
[1641678738376,4.0,145.51,145.38,3.90588436]
[1641678738578,7.484,145.52,145.38,3.90588436]
[1641678738777,7.484,145.52,145.39,1.718]
[1641678738979,7.484,145.52,145.37,9.62388436]
[1641678739178,7.484,145.52,145.44,27.66479]
[1641678739980,7.484,145.52,145.44,31.66479]
[1641678740278,67.6514,145.56,145.46,4.0]
[1641678740479,70.4198,145.57,145.45,4.0]
[1641678740678,66.4198,145.57,145.44,27.66479]
[1641678740879,66.4198,145.57,145.45,1.718]
[1641678741079,66.4198,145.57,145.44,27.66479]
[1641678741279,66.4198,145.57,145.51,27.66479]
[1641678741480,4.0,145.54,145.42,1.718]
[1641678741680,10.996,145.54,145.41,1.718]
[1641678741880,10.996,145.54,145.4,4.0]
[1641678742081,10.996,145.54,145.39,4.0]
[1641678742380,4.0,145.52,145.42,3.9065618]
[1641678742581,4.0,145.53,145.42,3.9065618]
[1641678742781,4.0,145.47,145.42,3.9065618]
[1641678742984,4.0,145.43,145.32,1.718]
[1641678743184,10.366,145.43,145.36,27.66479]
[1641678743384,4.0,145.41,145.36,27.66479]
[1641678743885,4.0,145.42,145.36,27.66479]
[1641678744185,10.366,145.43,145.36,27.66479]
[1641678744385,6.366,145.43,145.36,27.66479]
[1641678745187,10.366,145.43,145.34,27.66479]
[1641678745388,4.0,145.42,145.3,27.66479]
[1641678745586,4.0,145.4,145.3,27.66479]
[1641678745788,9.58,145.4,145.3,27.66479]
[1641678746187,5.58,145.4,145.3,27.66479]
[1641678748188,4.0,145.37,145.3,27.66479]
[1641678748391,4.0,145.36,145.25,1.72]
[1641678748590,6.488,145.37,145.18,5.72]
[1641678748792,10.488,145.37,145.19,4.0]
[1641678749090,10.488,145.37,145.18,4.0]
[1641678749293,10.488,145.37,145.23,27.66479]
[1641678749492,6.488,145.37,145.23,27.66479]
[1641678749994,6.488,145.37,145.23,29.38479]
[1641678750295,6.488,145.37,145.25,4.0]
[1641678750509,6.60246823,145.41,145.23,36.20879]
[1641678750691,6.60246823,145.41,145.27,4.0]
[1641678750891,6.60246823,145.41,145.28,1.72]
[1641678751091,6.60246823,145.41,145.28,4.0]
[1641678751391,6.60246823,145.41,145.32,27.66479]
[1641678753695,4.0,145.38,145.3,27.66479]
[1641678753994,8.676,145.38,145.3,27.66479]
[1641678754795,199.8878,145.42,145.32,4.0]
[1641678754998,199.8878,145.42,145.33,4.0]
[1641678755195,132.1187,145.42,145.37,27.66479]
[1641678755399,4.0,145.41,145.37,27.66479]
[1641678755695,7.416,145.41,145.35,27.66479]
[1641678756096,7.416,145.41,145.27,1.719]
[1641678756296,7.416,145.41,145.26,1.72]
[1641678756297,11.416,145.41,145.26,1.72]
[1641678756498,11.416,145.41,145.23,5.72]
[1641678756499,5.50278945,145.39,145.23,5.72]
[1641678756699,5.50278945,145.39,145.24,4.0]
[1641678756896,5.50278945,145.39,145.25,1.72]
[1641678757296,5.50278945,145.39,145.28,27.66479]
[1641678757497,5.50344405,145.37,145.28,27.66479]
[1641678757697,13.36744405,145.37,145.28,27.66479]
[1641678757900,13.36744405,145.37,145.29,3.90984435]
[1641678758300,5.5045328,145.34,145.29,3.90984435]
[1641678758498,11.9365328,145.34,145.29,4.435e-05]
[1641678758700,5.5056702,145.31,145.29,4.435e-05]
[1641678758899,13.9516702,145.31,145.18,42.63809845]
[1641678759301,13.9516702,145.31,145.23,27.66479]
[1641678759903,17.9516702,145.31,145.23,27.66479]
[1641678760104,4.0,145.3,145.24,3.91085244]
[1641678760506,13.9516702,145.31,145.22,3.91085244]
[1641678760705,17.9516702,145.31,145.22,3.91085244]
[1641678761107,4.0,145.3,145.22,3.91085244]
[1641678761307,13.9516702,145.31,145.22,3.91085244]
[1641678761707,27.66479,145.32,145.22,3.91085244]
[1641678762107,27.66479,145.36,145.24,4.0]
[1641678762307,66.2196,145.41,145.25,1.72]
[1641678762508,133.8289,145.4,145.26,4.0]
[1641678762708,133.8289,145.4,145.25,21.07547422]
[1641678763110,5.50483566,145.33,145.26,3.91085244]
[1641678763309,27.66479,145.27,145.26,5.244e-05]
[1641678763508,34.13879,145.27,145.26,5.244e-05]
[1641678763809,34.13879,145.27,145.24,5.244e-05]
[1641678764510,4.0,145.25,145.18,27.66479]
[1641678764709,4.0,145.26,145.15,14.45207572]
[1641678764912,5.50875926,145.23,145.15,14.45207572]
[1641678765108,11.98675926,145.23,145.15,14.45207572]
[1641678765309,6.478,145.23,145.15,14.45207572]
[1641678765509,6.478,145.23,145.16,3.91263234]
[1641678765908,6.478,145.23,145.15,3.91263234]
[1641678766710,4.0,145.19,145.14,27.66479]
[1641678766911,7.956,145.19,145.14,27.66479]
[1641678767111,11.956,145.19,145.11,14.45207572]
[1641678767310,27.66479,145.15,145.11,14.45207572]
[1641678767510,33.23779,145.15,145.08,14.45207572]
[1641678767711,5.573,145.15,145.08,14.45207572]
[1641678768316,5.573,145.15,145.09,3.91427419]
[1641678768912,9.51076405,145.18,145.09,3.91427419]
[1641678769113,5.51076405,145.18,145.09,3.91427419]
[1641678769313,4.0,145.17,145.09,27.66479]
[1641678769514,5.51087557,145.17,145.09,27.66479]
[1641678769713,9.51087557,145.17,145.09,27.66479]
[1641678769914,5.51087557,145.17,145.1,3.91427419]
[1641678770115,5.51087557,145.17,145.1,9.31027419]
[1641678770315,27.66479,145.2,145.1,9.31027419]
[1641678770713,27.66479,145.2,145.11,3.91427419]
[1641678770714,4.0,145.18,145.11,3.91427419]
[1641678770916,4.0,145.19,145.11,3.91427419]
[1641678771114,4.0,145.14,145.11,3.91427419]
[1641678771314,4.0,145.14,145.11,2.73229244]
[1641678771514,4.0,145.15,145.11,2.73221825]
[1641678771914,4.0,145.15,145.08,14.45207572]
[1641678772115,4.0,145.13,145.08,14.45207572]
[1641678772313,4.0,145.1,145.08,14.45207572]
[1641678772515,6.762,145.1,145.08,14.45207572]
[1641678773315,10.762,145.1,145.04,27.66479]
[1641678773915,10.762,145.1,145.05,2.2660798]
[1641678774115,4.0,145.07,145.05,2.2660798]
[1641678774316,7.239,145.07,145.05,2.2660798]
[1641678774615,7.239,145.07,145.04,27.66479]
[1641678775317,27.66479,145.11,145.04,27.66479]
[1641678775516,27.66479,145.11,145.04,34.93979]
[1641678776117,31.66479,145.11,145.05,2.26578435]
[1641678776325,9.51387093,145.09,145.05,2.26578435]
[1641678776515,16.22587093,145.09,145.01,27.66479]
[1641678776717,4.0,145.05,144.96,14.45207572]
[1641678776915,9.51577334,145.04,144.96,6.45207572]
[1641678777116,5.51577334,145.04,144.93,38.63809845]
[1641678777315,5.51577334,145.04,144.92,6.45207572]
[1641678777515,27.66479,145.0,144.92,6.45207572]
[1641678777715,33.72279,145.0,144.92,6.45207572]
[1641678777915,33.72279,145.0,144.93,1.87729769]
[1641678778117,4.0,144.99,144.93,1.87729769]
[1641678778318,4.0,144.96,144.93,1.87729769]
[1641678778516,12.13,144.96,144.93,9.769e-05]
[1641678778718,8.13,144.96,144.91,9.769e-05]
[1641678778917,5.51935054,144.95,144.91,9.769e-05]
[1641678779817,8.13,144.96,144.86,27.66479]
[1641678780017,75.17738913,144.98,144.86,27.66479]
[1641678780216,55.32958,145.0,144.92,4.0]
[1641678780418,67.249,145.02,144.92,5.599]
[1641678780617,67.249,145.02,144.92,7.323]
[1641678780817,67.249,145.02,144.93,1.09130478]
[1641678781520,67.249,145.02,144.95,27.66479]
[1641678781717,5.51712151,145.01,144.95,27.66479]
[1641678781918,5.51712151,145.01,144.91,1.09130478]
[1641678782317,5.51712151,145.01,144.85,4.0]
[1641678782517,5.51712151,145.01,144.88,4.0]
[1641678782718,9.51712151,145.01,144.86,1.27890235]
[1641678783017,9.51792836,144.99,144.86,1.27890235]
[1641678783220,9.51792836,144.99,144.85,1.724]
[1641678783221,4.0,144.98,144.85,1.27890235]
[1641678783418,11.56892836,144.99,144.85,28.94369235]
[1641678783618,5.51900794,144.96,144.85,28.94369235]
[1641678783818,5.51976612,144.94,144.85,27.66479]
[1641678784217,5.51976612,144.94,144.86,1.27890235]
[1641678784620,5.51976612,144.94,144.9,4.0]
[1641678784818,6.051,144.99,144.91,4.0]
[1641678785019,6.051,144.99,144.88,5.5216828]
[1641678785219,6.051,144.99,144.92,1.27890235]
[1641678785618,6.051,144.99,144.91,28.94369235]
[1641678785818,72.76564786,145.02,144.91,28.94369235]
[1641678786019,72.76564786,145.02,144.92,1.27890235]
[1641678786219,67.249,145.02,144.92,12.87590235]
[1641678786519,67.249,145.02,144.92,8.87590235]
[1641678787119,67.249,145.02,144.93,1.27890235]
[1641678787618,67.249,145.02,144.98,27.66479]
[1641678787821,62.8831,145.04,144.98,27.66479]
[1641678788020,5.51560906,145.05,144.98,27.66479]
[1641678788218,9.51560906,145.05,144.98,27.66479]
[1641678788619,9.51560906,145.05,144.96,27.66479]
[1641678788818,5.51560906,145.05,144.96,27.66479]
[1641678789221,5.51560906,145.05,144.97,1.09047208]
[1641678789518,5.51560906,145.05,145.0,27.66479]
[1641678789919,5.51560906,145.05,144.97,7.13547208]
[1641678790119,4.0,145.09,144.97,20.59689539]
[1641678790318,6.61497689,145.13,145.02,4.0]
[1641678790518,44.14897377,145.17,145.02,8.806]
[1641678790721,44.14897377,145.17,145.03,4.0]
[1641678790919,5.51087532,145.17,145.05,4.0]
[1641678791119,38.63809845,145.21,145.07,4.0]
[1641678791319,4.0,145.19,145.07,4.0]
[1641678791519,66.30288845,145.21,145.11,27.66479]
[1641678791718,66.30288845,145.21,145.11,34.06979]
[1641678792118,27.66479,145.21,145.11,34.06979]
[1641678792521,34.27508887,145.23,145.12,4.0]
[1641678792718,27.66479,145.23,145.12,4.0]
[1641678793118,27.66479,145.23,145.13,4.0]
[1641678793319,27.66479,145.23,145.12,4.0]
[1641678793518,27.66479,145.23,145.16,27.66479]
[1641678793718,27.66479,145.23,145.16,33.41279]
[1641678795123,31.66479,145.23,145.12,1.721]
[1641678795323,4.0,145.21,145.11,27.66479]
[1641678795725,67.65858,145.23,145.11,27.66479]
[1641678795923,63.65858,145.23,145.11,27.66479]
[1641678796125,4.0,145.22,145.11,27.66479]
[1641678796524,4.0,145.19,145.11,27.66479]
[1641678796725,7.221,145.19,145.11,27.66479]
[1641678797725,4.0,145.22,145.11,27.66479]
[1641678798125,59.32958,145.23,145.11,27.66479]
[1641678798327,55.32958,145.23,145.11,27.66479]
[1641678798928,55.32958,145.23,145.11,35.70279]
[1641678799131,55.32958,145.23,145.11,39.70279]
[1641678799326,5.50824089,145.24,145.13,4.0]
[1641678799527,5.50824089,145.24,145.2,27.66479]
[1641678799926,5.50824089,145.24,145.19,8.766]
[1641678800127,5.50961491,145.21,145.19,8.766]
[1641678800627,5.50814999,145.24,145.19,8.766]
[1641678800829,66.405,145.29,145.19,8.766]
[1641678801028,6.60589607,145.33,145.22,4.0]
[1641678801229,38.63809845,145.36,145.23,4.0]
[1641678801628,38.63809845,145.36,145.27,27.66479]
[1641678801929,38.63809845,145.36,145.27,33.02179]
[1641678802331,38.63809845,145.36,145.27,37.02179]
[1641678802531,38.63809845,145.36,145.28,4.0]
[1641678802728,89.0,145.43,145.31,4.0]
[1641678802930,38.63809845,145.46,145.32,4.0]
[1641678803128,38.63809845,145.46,145.36,4.0]
[1641678803328,38.63809845,145.46,145.36,5.956]
[1641678803528,38.63809845,145.46,145.39,4.0]
[1641678803729,38.63809845,145.46,145.45,55.32958]
[1641678803929,8.80352958,145.53,145.45,61.24858]
[1641678805331,68.5163,145.54,145.45,61.24858]
[1641678805734,4.0,145.52,145.45,5.919]
[1641678805934,4.0,145.52,145.38,4.0]
[1641678806134,4.0,145.51,145.34,1.718]
[1641678806333,4.0,145.49,145.34,5.718]
[1641678806533,4.0,145.48,145.34,1.718]
[1641678806743,4.0,145.42,145.34,1.718]
[1641678807040,5.392,145.42,145.28,4.0]
[1641678807739,37.05679,145.42,145.33,27.66479]
[1641678808340,4.0,145.36,145.33,27.66479]
[1641678808538,6.298,145.36,145.2,5.72]
[1641678808739,6.298,145.36,145.21,4.0]
[1641678809140,6.298,145.36,145.22,4.0]
[1641678809339,6.298,145.36,145.22,5.08369467]
[1641678809639,33.96279,145.36,145.26,27.66479]
[1641678810042,4.0,145.31,145.24,27.66479]
[1641678810239,10.632,145.31,145.23,1.08369467]
[1641678810440,10.632,145.31,145.15,4.0]
[1641678810940,4.0,145.27,145.14,1.72]
[1641678811140,4.0,145.27,145.16,1.08488649]
[1641678811141,12.222,145.27,145.16,1.08488649]
[1641678811342,8.222,145.27,145.16,1.08488649]
[1641678811542,5.50745511,145.26,145.16,1.08488649]
[1641678811741,27.66479,145.22,145.13,1.08488649]
[1641678811941,4.0,145.21,145.13,1.08488649]
[1641678812144,4.0,145.21,145.09,27.66479]
[1641678812344,36.34579,145.22,145.09,27.66479]
[1641678812945,36.34579,145.22,145.1,1.08659158]
[1641678813746,40.34579,145.22,145.1,1.08659158]
[1641678814045,45.85474223,145.22,145.1,1.08659158]
[1641678814246,4.0,145.21,145.1,1.08659158]
[1641678814446,45.85474223,145.22,145.1,1.08659158]
[1641678814646,4.0,145.2,145.1,1.08659158]
[1641678815048,4.0,145.19,145.1,1.08659158]
[1641678815249,4.0,145.16,145.1,1.08659158]
[1641678815447,4.0,145.17,145.01,24.57798377]
[1641678815649,27.66479,145.15,145.05,27.66479]
[1641678815849,5.51106784,145.17,145.07,4.0]
[1641678816152,4.0,145.25,145.07,4.0]
[1641678816349,4.0,145.22,145.08,1.722]
[1641678816548,4.0,145.17,145.08,1.08805731]
[1641678816748,10.296,145.17,145.08,1.08805731]
[1641678816947,4.0,145.15,145.08,1.08805731]
[1641678817147,4.0,145.15,145.07,1.08805731]
[1641678817349,9.51201695,145.14,145.07,1.08805731]
[1641678817652,27.66479,145.12,145.07,1.08805731]
[1641678817849,4.0,145.08,145.04,1.08805731]
[1641678818049,5.849,145.08,145.04,1.08805731]
[1641678818248,4.0,145.05,145.02,1.08805731]
[1641678818449,10.672,145.05,145.02,5.731e-05]
[1641678818649,6.672,145.05,145.02,5.731e-05]
[1641678819048,6.672,145.05,144.98,14.31798377]
[1641678819249,4.0,145.0,144.98,14.31798377]
[1641678819449,9.51733595,145.0,144.91,56.24792583]
[1641678819649,27.66479,144.92,144.91,56.24792583]
[1641678819850,34.62679,144.92,144.91,56.24792583]
[1641678820052,38.62679,144.92,144.91,43.66792583]
[1641678820253,38.62679,144.92,144.83,1.724]
[1641678820452,40.14742348,144.92,144.78,4.0]
[1641678820654,40.14742348,144.92,144.91,14.43648917]
[1641678821053,44.14742348,144.92,144.91,14.43648917]
[1641678821251,40.14742348,144.92,144.91,14.43648917]
[1641678821451,44.14742348,144.92,144.91,10.37648917]
[1641678821651,44.14742348,144.92,144.88,25.80929547]
[1641678821852,3.92243896,144.89,144.88,25.80929547]
[1641678822053,40.14742348,144.92,144.79,27.66479]
[1641678822254,33.18542348,144.92,144.8,4.0]
[1641678822453,27.66479,144.92,144.84,4.0]
[1641678822652,27.66479,144.94,144.84,4.0]
[1641678822857,63.0351,144.99,144.85,5.725]
[1641678823052,63.0351,144.99,144.85,6.81828187]
[1641678823352,63.0351,144.99,144.86,4.0]
[1641678823553,63.0351,144.99,144.87,1.725]
[1641678823752,63.0351,144.99,144.89,27.66479]
[1641678823952,63.0351,144.99,144.87,1.09328187]
[1641678824153,4.0,144.98,144.87,1.09328187]
[1641678824452,4.0,144.91,144.84,1.09328187]
[1641678824652,4.0,144.9,144.84,1.09328187]
[1641678825152,4.0,144.89,144.72,4.0]